bitfinex-derivatives/quotes_SOLF0:USTF0_20260217
["timestamp","ask_amount","ask_price","bid_price","bid_amount"]
[1771305256035,2.74062979,86.23,86.201,3.63406522]
[1771305257435,2.74062979,86.23,86.203,3.63406522]
[1771305258129,6.46384239,86.24,86.203,3.63406522]
[1771305258333,3.7232126,86.239,86.203,3.63406522]
[1771305270549,3.7232126,86.229,86.193,3.63406522]
[1771305271247,2.74062979,86.22,86.193,3.63406522]
[1771305271752,2.74062979,86.22,86.16,2.01849709]
[1771305271753,80.24,86.224,86.195,3.63406522]
[1771305273655,80.32,86.233,86.195,3.63406522]
[1771305273952,2.74062979,86.23,86.195,3.63406522]
[1771305275748,2.74062979,86.22,86.195,3.63406522]
[1771305275949,3.7232126,86.229,86.195,3.63406522]
[1771305278259,3.7232126,86.229,86.185,3.63406522]
[1771305278451,3.7232126,86.227,86.185,3.63406522]
[1771305281155,3.7232126,86.227,86.184,10.4484]
[1771305281156,2.74062979,86.21,86.175,10.4495]
[1771305281361,6.46384239,86.21,86.176,3.63406522]
[1771305281851,3.7232126,86.199,86.163,3.63406522]
[1771305283155,2.74062979,86.19,86.163,3.63406522]
[1771305283354,2.74062979,86.19,86.152,14.08626522]
[1771305283658,2.74062979,86.19,86.153,3.63406522]
[1771305284347,2.74062979,86.19,86.155,3.95440612]
[1771305285558,3.67505423,86.189,86.154,10.4521]
[1771305287157,2.74062979,86.17,86.119,21.57359974]
[1771305287358,2.74062979,86.16,86.12,3.95440612]
[1771305288752,2.74062979,86.16,86.132,10.4547]
[1771305289860,3.69127288,86.159,86.113,3.77291631]
[1771305290060,3.69127288,86.149,86.113,3.77291631]
[1771305290267,2.74062979,86.14,86.113,3.77291631]
[1771305290563,2.74062979,86.15,86.113,3.77291631]
[1771305291261,73.0,86.159,86.115,3.77291631]
[1771305291460,2.74062979,86.16,86.115,3.77291631]
[1771305291966,2.74062979,86.15,86.115,3.77291631]
[1771305293759,2.74062979,86.15,86.118,3.77291631]
[1771305294357,2.74062979,86.15,86.12,3.77291631]
[1771305294562,2.74062979,86.17,86.12,3.77291631]
[1771305294763,2.74062979,86.17,86.121,3.77291631]
[1771305294959,2.74062979,86.17,86.132,3.77291631]
[1771305295666,2.74062979,86.18,86.138,3.77291631]
[1771305296069,2.74062979,86.17,86.138,3.77291631]
[1771305297774,2.74062979,86.18,86.14,3.77291631]
[1771305298771,2.74062979,86.18,86.146,14.22591631]
[1771305299159,3.77513496,86.189,86.147,3.77291631]
[1771305299972,2.74062979,86.18,86.147,3.77291631]
[1771305300173,2.74062979,86.18,86.15,10.4526]
[1771305300561,2.74062979,86.17,86.147,3.77291631]
[1771305301868,2.74062979,86.17,86.14,10.4538]
[1771305302572,73.0,86.189,86.143,3.77291631]
[1771305302874,3.95249332,86.197,86.143,3.77291631]
[1771305303173,2.74062979,86.19,86.143,3.77291631]
[1771305303873,2.74062979,86.19,86.153,10.4522]
[1771305304463,3.91509617,86.189,86.153,10.4522]
[1771305304663,2.979e-05,86.16,86.121,3.77291631]
[1771305305677,3.91509617,86.169,86.132,10.4548]
[1771305307272,3.85278884,86.181,86.135,3.77291631]
[1771305307464,2.74062979,86.18,86.135,3.77291631]
[1771305307976,3.85278884,86.179,86.135,3.77291631]
[1771305308678,3.85278884,86.179,86.141,10.4536]
[1771305309274,3.85278884,86.179,86.149,10.4526]
[1771305309472,3.85545585,86.195,86.15,3.77291631]
[1771305310674,3.85545585,86.195,86.168,10.4504]
[1771305311873,3.89304064,86.208,86.168,10.4504]
[1771305312074,3.89304064,86.208,86.169,3.77291631]
[1771305312272,3.89304064,86.208,86.173,10.4497]
[1771305312974,3.89304064,86.208,86.173,14.22261631]
[1771305318476,3.89304064,86.208,86.173,3.77291631]
[1771305319277,2.74437027,86.21,86.176,3.63635091]
[1771305319581,2.74437027,86.19,86.151,3.63635091]
[1771305320679,2.74437027,86.19,86.156,10.4518]
[1771305321586,2.74437027,86.18,86.151,3.63635091]
[1771305323786,2.74437027,86.18,86.104,73.0]
[1771305323787,6.60816982,86.17,86.126,3.63635091]
[1771305324083,2.74437027,86.15,86.101,3.63635091]
[1771305324284,3.86379955,86.149,86.102,10.4583]
[1771305324481,3.86379955,86.149,86.103,3.63635091]
[1771305325284,3.86379955,86.149,86.104,14.09455091]
[1771305327288,6.58777897,86.14,86.104,10.4582]
[1771305328189,6.58777897,86.14,86.094,3.63635091]
[1771305328879,3.81771031,86.139,86.094,3.63635091]
[1771305329186,2.74437027,86.13,86.098,3.63635091]
[1771305329383,2.74437027,86.12,86.071,3.63635091]
[1771305329589,2.74437027,86.13,86.071,3.63635091]
[1771305330590,2.74437027,86.15,86.101,3.63635091]
[1771305331382,2.74437027,86.15,86.105,3.63635091]
[1771305331583,2.74437027,86.14,86.105,3.63635091]
[1771305331889,6.65511311,86.14,86.105,3.63635091]
[1771305332584,3.91074284,86.139,86.096,10.4591]
[1771305332979,3.91074284,86.139,86.089,3.63635091]
[1771305333587,14.43011072,86.206,86.064,73.02]
[1771305333588,2.74437027,86.15,86.107,3.63635091]
[1771305334092,2.74437027,86.15,86.114,10.4569]
[1771305335593,2.74437027,86.15,86.119,10.4563]
[1771305336994,2.74437027,86.15,86.12,3.63635091]
[1771305337591,2.74437027,86.14,86.11,3.63635091]
[1771305337795,2.74437027,86.14,86.09,2.74437027]
[1771305337796,6.66607239,86.13,86.091,3.63635091]
[1771305338188,4.266e-05,86.13,86.105,3.95750081]
[1771305338395,7.027e-05,86.15,86.105,3.95750081]
[1771305339099,73.02,86.167,86.1,2.74437027]
[1771305339100,2.74437027,86.16,86.121,10.456]
[1771305339392,7.027e-05,86.15,86.121,10.456]
[1771305340096,7.027e-05,86.15,86.127,10.4553]
[1771305340493,2.74437027,86.16,86.127,10.4553]
[1771305341803,2.74437027,86.16,86.122,3.94797412]
[1771305341989,2.74437027,86.15,86.122,3.94797412]
[1771305345697,2.74437027,86.15,86.123,10.4558]
[1771305348096,2.74437027,86.14,86.108,3.91212349]
[1771305354705,2.74437027,86.17,86.111,3.91774554]
[1771305355396,0.09940242,86.169,86.111,3.91774554]
[1771305355596,2.74437027,86.16,86.111,3.91774554]
[1771305356402,0.09940242,86.169,86.128,3.91752445]
[1771305357303,0.10104291,86.189,86.131,3.91752445]
[1771305357501,2.74437027,86.18,86.131,3.91752445]
[1771305358806,2.74437027,86.18,86.144,10.4533]
[1771305361010,2.74437027,86.18,86.096,21.65249001]
[1771305361011,2.74437027,86.2,86.154,3.92984888]
[1771305361503,2.74437027,86.21,86.154,3.92984888]
[1771305362202,0.06949748,86.209,86.154,3.92984888]
[1771305362401,2.74437027,86.19,86.154,3.92984888]
[1771305362601,0.06949748,86.189,86.154,3.92984888]
[1771305363516,8.34856933,86.212,86.154,3.92984888]
[1771305363517,2.74437027,86.2,86.154,3.92984888]
[1771305363705,0.11275579,86.206,86.154,3.92984888]
[1771305364805,2.74437027,86.21,86.157,3.91084777]
[1771305365202,2.85712606,86.19,86.141,3.91084777]
[1771305365509,2.85712606,86.19,86.144,14.36672619]
[1771305366610,2.85712606,86.19,86.148,10.4528]
[1771305366807,2.85712606,86.19,86.148,14.36622619]
[1771305367009,2.85712606,86.19,86.149,3.91342619]
[1771305368206,2.84576197,86.18,86.138,10.4539]
[1771305368424,0.1013917,86.179,86.138,10.4539]
[1771305369015,2.74437027,86.17,86.138,10.4539]
[1771305369426,2.74437027,86.17,86.136,3.91652981]
[1771305369917,2.74475935,86.17,86.136,3.91652981]
[1771305374513,0.05052762,86.169,86.12,3.94110906]
[1771305374713,0.05052762,86.139,86.095,3.94110906]
[1771305375216,2.74475935,86.14,86.095,3.94110906]
[1771305375919,2.74475935,86.14,86.104,10.4581]
[1771305379814,2.74475935,86.13,86.104,10.4581]
[1771305380014,73.02,86.152,86.104,10.4581]
[1771305380220,2.74475935,86.14,86.105,4.04323227]
[1771305383125,5.935e-05,86.13,86.105,4.04323227]
[1771305384936,2.74475935,86.12,86.093,4.03476442]
[1771305385139,2.74475935,86.1,86.061,4.03476442]
[1771305385526,2.74475935,86.07,86.016,4.03457435]
[1771305385731,5.935e-05,86.06,86.016,4.03457435]
[1771305385927,2.74475935,86.07,86.016,4.03457435]
[1771305386336,73.04,86.08,86.021,4.03457435]
[1771305386630,75.78475935,86.08,86.021,4.03457435]
[1771305386837,2.74475935,86.07,86.033,4.03457435]
[1771305387238,73.04,86.088,86.033,4.03457435]
[1771305387438,2.74475935,86.07,86.033,4.03457435]
[1771305387834,73.04,86.088,86.035,14.48066426]
[1771305388041,2.74475935,86.07,86.035,14.48066426]
[1771305389038,2.74475935,86.07,86.035,4.01416426]
[1771305389242,2.74475935,86.07,86.024,10.4679]
[1771305389442,2.74475935,86.06,86.024,10.4679]
[1771305390836,2.74475935,86.07,86.028,4.01887303]
[1771305391036,21.57940649,86.15,85.99,2.02246212]
[1771305391037,2.74475935,86.08,86.031,4.01887303]
[1771305391932,2.74475935,86.09,86.041,4.05975259]
[1771305392132,267.12,86.159,86.041,4.05975259]
[1771305392133,2.74475935,86.1,86.041,4.05975259]
[1771305392840,2.74475935,86.1,86.05,2.74475935]
[1771305393043,2.74475935,86.1,86.051,4.05975259]
[1771305393640,2.74475935,86.1,86.06,10.4635]
[1771305393845,73.04,86.117,86.061,4.04870314]
[1771305394139,2.74475935,86.11,86.061,4.04870314]
[1771305394839,2.74475935,86.1,86.073,10.4619]
[1771305395046,2.74475935,86.11,86.074,4.04870314]
[1771305395746,2.74475935,86.1,86.062,10.4632]
[1771305396643,2.74475935,86.09,86.051,10.4645]
[1771305396843,2.74475935,86.08,86.051,10.4645]
[1771305397042,2.74475935,86.07,86.021,4.06393161]
[1771305397343,232.3,86.159,86.021,4.06393161]
[1771305397344,2.74475935,86.06,86.021,4.06393161]
[1771305397545,5.935e-05,86.06,86.021,4.06393161]
[1771305397739,73.04,86.086,86.036,10.4664]
[1771305398043,2.74475935,86.09,86.037,4.05550515]
[1771305398245,2.74475935,86.08,86.037,4.05550515]
[1771305398641,2.74475935,86.07,86.039,4.05550515]
[1771305398943,2.74475935,86.07,86.038,10.4661]
[1771305401538,73.04,86.09,86.038,10.4661]
[1771305401740,2.74475935,86.07,86.038,10.4661]
[1771305404650,8.38671997,86.133,85.983,162.9111]
[1771305404651,2.74475935,86.09,86.049,3.98503938]
[1771305405144,10.4568,86.115,86.051,3.98503938]
[1771305405344,2.74475935,86.09,86.051,3.98503938]
[1771305405745,2.74475935,86.09,86.053,10.4643]
[1771305405939,2.74475935,86.09,86.054,3.97959365]
[1771305406650,2.74475935,86.09,86.058,10.4638]
[1771305406953,2.74475935,86.1,86.059,3.97959365]
[1771305407547,2.74475935,86.09,86.059,3.97959365]
[1771305409253,2.74475935,86.09,86.01,73.04]
[1771305409254,2.74475935,86.11,86.06,3.99427401]
[1771305409752,2.74475935,86.1,86.06,3.99427401]
[1771305410651,2.74475935,86.1,86.063,3.99940809]
[1771305411649,2.74475935,86.1,86.067,10.4626]
[1771305412751,2.74475935,86.1,86.016,73.04]
[1771305412752,2.74475935,86.12,86.079,3.99030589]
[1771305413046,2.74475935,86.11,86.079,3.99030589]
[1771305414549,2.74475935,86.11,85.978,162.9217]
[1771305414550,2.74475935,86.1,86.057,3.99285702]
[1771305415951,2.74475935,86.11,86.057,3.99285702]
[1771305416356,2.74475935,86.11,86.068,3.98176404]
[1771305417661,2.74475935,86.1,86.068,3.98176404]
[1771305418858,2.74475935,86.1,86.059,3.98065771]
[1771305420058,2.74475935,86.1,86.063,3.98381629]
[1771305421751,2.74475935,86.1,86.064,10.463]
[1771305421948,2.74475935,86.1,86.065,3.9840001]
[1771305427365,2.74475935,86.09,86.056,10.464]
[1771305427569,2.74475935,86.08,86.051,3.97238179]
[1771305429965,2.75033018,86.08,86.051,3.97238179]
[1771305430564,2.75033018,86.08,86.052,10.4645]
[1771305431377,2.75033018,86.09,86.054,10.4642]
[1771305433964,2.75033018,86.09,86.056,14.49259885]
[1771305434666,2.75033018,86.09,86.03,2.75033018]
[1771305434667,8.45779681,86.112,86.06,4.02861835]
[1771305434861,2.75033018,86.09,86.06,4.02861835]
[1771305435063,2.75033018,86.08,86.031,4.02861835]
[1771305436663,2.75033018,86.08,86.053,10.4643]
[1771305437269,3.018e-05,86.08,86.053,10.4643]
[1771305438374,2.75033018,86.09,86.053,10.4643]
[1771305441075,2.75033018,86.1,86.062,4.0599122]
[1771305441473,2.75033018,86.09,86.062,4.0599122]
[1771305444080,2.75033018,86.1,86.064,4.12289509]
[1771305446689,8.45779681,86.117,86.064,4.12289509]
[1771305446878,2.75033018,86.1,86.064,4.12289509]
[1771305447382,2.75033018,86.09,86.064,4.12289509]
[1771305447684,2.75033018,86.09,86.052,4.12094011]
[1771305450078,8.45779681,86.104,86.052,4.12094011]
[1771305450282,2.75033018,86.08,86.052,4.12094011]
[1771305452777,2.75033018,86.08,86.006,73.06]
[1771305452778,2.75033018,86.06,86.024,4.12002442]
[1771305453082,2.75033018,86.05,86.024,4.12002442]
[1771305453382,8.45779681,86.082,86.024,4.12002442]
[1771305453588,2.75033018,86.08,86.024,4.12002442]
[1771305453780,8.45779681,86.092,86.031,4.12451647]
[1771305454085,2.75033018,86.09,86.036,4.12451647]
[1771305455486,2.75033018,86.09,86.053,4.16066145]
[1771305455687,2.75033018,86.1,86.053,4.16066145]
[1771305456184,2.75033018,86.08,86.053,4.16066145]
[1771305456682,2.75033018,86.08,86.039,4.16066145]
[1771305457085,2.75033018,86.07,86.039,4.16066145]
[1771305459485,2.75033018,86.08,86.039,4.16066145]
[1771305461890,2.75033018,86.07,86.039,4.16066145]
[1771305462392,2.75033018,86.07,86.026,10.4676]
[1771305462585,2.75033018,86.07,86.026,14.65904761]
[1771305462785,2.75033018,86.06,86.027,4.19144761]
[1771305463183,2.75033018,86.06,86.026,10.4676]
[1771305465394,2.75033018,86.05,86.015,4.19144761]
[1771305466386,8.48559738,86.074,86.017,4.22208736]
[1771305466585,2.75033018,86.06,86.017,4.22208736]
[1771305466785,8.48559738,86.074,86.03,4.22208736]
[1771305466993,2.75033018,86.06,86.03,4.22208736]
[1771305469087,2.75033018,86.06,86.029,10.4673]
[1771305469287,2.75033018,86.05,86.029,10.4673]
[1771305469487,2.75033018,86.05,86.019,10.4684]
[1771305471788,3.018e-05,86.05,86.027,10.4675]
[1771305471983,2.75033018,86.06,86.028,4.22902807]
[1771305472195,2.75033018,86.07,86.028,4.22902807]
[1771305472890,2.75033018,86.07,86.031,4.22902807]
[1771305473090,10.75082341,86.101,85.991,73.08]
[1771305473091,2.75033018,86.1,86.041,4.22902807]
[1771305473498,2.75033018,86.09,86.041,4.22902807]
[1771305474396,2.75033018,86.09,86.04,2.75033018]
[1771305474397,80.06,86.113,86.058,4.21487352]
[1771305474597,2.75033018,86.1,86.058,4.21487352]
[1771305474899,2.75033018,86.09,86.058,4.21487352]
[1771305477089,2.75033018,86.11,86.061,4.18452876]
[1771305477489,2.75033018,86.11,86.05,2.75033018]
[1771305477490,2.75033018,86.11,86.071,4.18434828]
[1771305478699,2.75033018,86.1,86.059,10.4636]
[1771305479093,2.75033018,86.09,86.059,10.4636]
[1771305480104,2.75033018,86.09,86.058,4.18434828]
[1771305480507,2.75033018,86.11,86.058,4.18434828]
[1771305480700,2.75033018,86.11,86.061,4.16749776]
[1771305481701,2.75033018,86.11,86.069,4.19272869]
[1771305483197,2.75033018,86.11,86.05,2.75033018]
[1771305483198,2.75033018,86.1,86.058,10.4637]
[1771305483805,2.75033018,86.1,86.059,4.19371755]
[1771305484000,2.75033018,86.11,86.064,4.19371755]
[1771305484206,2.75033018,86.1,86.064,4.19371755]
[1771305485106,2.75033018,86.11,86.064,4.19371755]
[1771305485706,2.75033018,86.11,86.067,14.39800159]
[1771305486305,2.75033018,86.1,86.067,14.39800159]
[1771305487209,2.75033018,86.1,86.068,3.93530159]
[1771305489607,434.84382954,86.136,86.053,3.93530159]
[1771305489608,2.75033018,86.09,86.053,3.93530159]
[1771305489807,2.75033018,86.1,86.053,3.93530159]
[1771305490304,2.75033018,86.1,86.058,10.4637]
[1771305490507,2.75033018,86.1,86.059,3.93530159]
[1771305491303,2.75033018,86.11,86.062,3.93530159]
[1771305491503,2.75033018,86.1,86.062,3.93530159]
[1771305491904,2.74935858,86.1,86.062,3.93530159]
[1771305492808,2.74935858,86.1,86.063,3.93530159]
[1771305493610,2.74935858,86.11,86.065,3.93530159]
[1771305494810,2.74935858,86.11,86.068,3.77597217]
[1771305495510,2.74935858,86.11,86.07,3.77597217]
[1771305496709,2.74935858,86.1,86.07,3.77597217]
[1771305496910,2.74935858,86.11,86.07,3.77597217]
[1771305498816,5.05754258,86.11,86.07,3.77597217]
[1771305499011,2.74935858,86.11,86.07,3.77597217]
[1771305499917,2.74935858,86.11,86.071,3.77597217]
[1771305500714,2.74935858,86.11,86.078,10.4613]
[1771305500914,2.74935858,86.11,86.078,14.23727217]
[1771305501115,2.74935858,86.11,86.079,3.77597217]
[1771305505618,2.308184,86.122,86.085,3.77597217]
[1771305505820,2.74935858,86.12,86.085,3.77597217]
[1771305506520,2.308184,86.122,86.085,3.77597217]
[1771305506717,2.74935858,86.12,86.087,3.77597217]
[1771305507217,434.84382954,86.136,86.087,3.77597217]
[1771305507418,2.74935858,86.14,86.087,3.77597217]
[1771305507619,2.74935858,86.14,86.091,3.77597217]
[1771305508922,2.74935858,86.14,86.103,10.4582]
[1771305509714,2.74935858,86.14,86.049,21.53261399]
[1771305509715,2.74935858,86.12,86.09,10.4598]
[1771305510218,2.30145342,86.109,86.051,3.77597217]
[1771305510424,2.74935858,86.09,86.051,3.77597217]
[1771305510717,2.74935858,86.09,86.053,3.77597217]
[1771305511309,2.74935858,86.09,86.057,3.77597217]
[1771305511518,82.34,86.106,86.057,3.77597217]
[1771305511718,2.74935858,86.11,86.057,3.77597217]
[1771305512321,2.74935858,86.11,86.073,10.4619]
[1771305514425,2.22508699,86.099,86.056,3.77597217]
[1771305515816,2.22570872,86.089,86.041,3.77597217]
[1771305516021,2.74935858,86.08,86.041,3.77597217]
[1771305516619,2.74935858,86.08,86.046,10.4652]
[1771305517425,2.74935858,86.06,86.013,3.77597217]
[1771305517731,2.74935858,86.05,86.013,3.77597217]
[1771305518626,2.74935858,86.06,86.013,3.77597217]
[1771305518822,2.74935858,86.06,86.02,3.77597217]
[1771305519024,2.74935858,86.07,86.02,3.77597217]
[1771305519726,2.74935858,86.07,86.023,3.77597217]
[1771305520026,2.74935858,86.06,86.023,3.77597217]
[1771305520819,2.74935858,86.06,86.026,3.77597217]
[1771305521328,2.74935858,86.06,86.027,14.24347217]
[1771305521919,2.74935858,86.06,86.028,3.77597217]
[1771305522928,2.74935858,86.05,86.028,3.77597217]
[1771305523122,2.74935858,86.05,86.015,3.77597217]
[1771305524929,2.74935858,86.06,86.017,3.86634719]
[1771305525730,2.74935858,86.06,86.021,3.86634719]
[1771305526324,2.74935858,86.07,86.021,3.86634719]
[1771305527535,2.74935858,86.07,86.024,3.86634719]
[1771305528834,2.74935858,86.07,86.032,10.4669]
[1771305529338,2.74935858,86.06,86.024,3.86634719]
[1771305530642,2.74935858,86.06,86.026,3.95797007]
[1771305532344,2.35573646,86.069,86.03,3.95797007]
[1771305533842,2.74935858,86.07,86.04,10.4659]
[1771305534042,5.09429306,86.08,86.04,3.95797007]
[1771305534247,2.74935858,86.07,86.04,3.95797007]
[1771305537938,2.74935858,86.06,86.028,10.4674]
[1771305538137,2.74935858,86.05,86.028,10.4674]
[1771305538349,2.74935858,86.05,86.019,10.4685]
[1771305539445,5.858e-05,86.05,86.023,3.95797007]
[1771305539639,2.74935858,86.06,86.023,3.95797007]
[1771305540239,2.74935858,86.07,86.034,3.95797007]
[1771305540643,2.74935858,86.08,86.034,3.95797007]
[1771305541044,2.35177882,86.086,86.044,3.95797007]
[1771305541643,2.74935858,86.09,86.044,3.95797007]
[1771305541850,2.74935858,86.09,86.047,3.95797007]
[1771305542452,2.74935858,86.09,86.051,3.95797007]
[1771305542647,5.08919662,86.1,86.051,3.95797007]
[1771305543246,2.74935858,86.1,86.053,3.95797007]
[1771305543550,2.74935858,86.11,86.053,3.95797007]
[1771305544652,2.74935858,86.11,86.059,10.4636]
[1771305544852,2.74935858,86.11,86.06,3.95797007]
[1771305546556,2.74935858,86.11,86.063,3.95797007]
[1771305547052,2.74935858,86.1,86.063,3.95797007]
[1771305547647,2.74935858,86.1,86.07,10.4623]
[1771305548757,2.74935858,86.1,86.063,3.95797007]
[1771305549356,5.11500432,86.11,86.063,3.95797007]
[1771305550656,5.11500432,86.11,86.064,10.4629]
[1771305550849,5.11500432,86.11,86.065,3.95797007]
[1771305551555,2.74935858,86.1,86.065,3.95797007]
[1771305551754,2.74935858,86.1,86.067,10.4626]
[1771305551955,2.7490405,86.1,86.067,10.4626]
[1771305553351,2.38195926,86.123,86.072,3.95797007]
[1771305553558,2.7490405,86.12,86.072,3.95797007]
[1771305554654,2.7490405,86.12,86.015,20.938]
[1771305554655,2.7490405,86.1,86.065,10.4629]
[1771305555250,5.10660516,86.09,86.045,3.90172086]
[1771305555650,2.7490405,86.1,86.045,3.90172086]
[1771305555854,2.38556206,86.099,86.045,3.90172086]
[1771305556056,2.7490405,86.09,86.06,10.4635]
[1771305556658,2.7490405,86.09,86.049,14.36652086]
[1771305556957,2.38556206,86.089,86.049,14.36652086]
[1771305558261,2.7490405,86.08,86.039,3.90172086]
[1771305559764,2.7490405,86.08,86.04,10.4659]
[1771305560761,2.38762079,86.079,86.04,10.4659]
[1771305561565,2.7490405,86.07,86.031,10.467]
[1771305561967,2.7490405,86.07,86.031,14.36872086]
[1771305562462,2.20040673,86.069,86.031,14.36872086]
[1771305562667,2.7490405,86.06,86.031,14.36872086]
[1771305563767,2.7490405,86.06,86.031,3.90172086]
[1771305564669,2.16945784,86.083,86.034,3.90172086]
[1771305564862,2.7490405,86.07,86.034,3.90172086]
[1771305565564,2.7490405,86.08,86.036,3.90172086]
[1771305566767,2.7490405,86.08,86.039,3.90172086]
[1771305567568,5.00852422,86.07,86.027,3.90172086]
[1771305567966,2.25948372,86.069,86.027,3.90172086]
[1771305569060,2.7490405,86.06,86.027,3.90172086]
[1771305570070,2.7490405,86.06,86.028,10.4674]
[1771305570770,2.7490405,86.06,86.017,14.37042086]
[1771305570771,2.7490405,86.05,86.017,14.37042086]
[1771305572275,4.98852407,86.06,86.017,14.37042086]
[1771305572674,4.98852407,86.06,86.018,3.90172086]
[1771305573173,2.7490405,86.06,86.023,3.90172086]
[1771305573374,2.7490405,86.07,86.023,3.90172086]
[1771305573771,2.24649938,86.076,86.023,3.90172086]
[1771305573977,2.7490405,86.07,86.023,3.90172086]
[1771305574776,2.7490405,86.06,86.023,3.90172086]
[1771305574976,2.7490405,86.05,86.023,3.90172086]
[1771305576985,2.39573915,86.029,85.975,3.90172086]
[1771305577272,2.39573915,86.029,85.929,35.63025475]
[1771305577273,4.05e-05,85.99,85.954,3.90172086]
[1771305577482,2.39573915,86.01,85.914,73.12]
[1771305577483,2.39573915,86.01,85.956,3.90172086]
[1771305577673,2.7490405,86.0,85.956,3.90172086]
[1771305577874,2.7490405,85.99,85.956,3.90172086]
[1771305578070,2.7490405,85.98,85.945,3.90172086]
[1771305578275,2.39752726,86.012,85.951,3.90172086]
[1771305578479,2.7490405,86.0,85.952,3.90172086]
[1771305579082,2.39752726,86.012,85.952,3.90172086]
[1771305579278,2.7490405,86.0,85.952,3.90172086]
[1771305579577,2.39752726,86.012,85.954,3.90172086]
[1771305579777,2.7490405,86.01,85.954,3.90172086]
[1771305579976,2.7490405,86.0,85.954,3.90172086]
[1771305581182,2.7490405,85.98,85.939,3.90172086]
[1771305581379,2.7490405,85.97,85.939,3.90172086]
[1771305581570,2.7490405,85.96,85.924,3.90172086]
[1771305581976,2.56686426,85.979,85.924,3.90172086]
[1771305582582,6.89426592,85.97,85.904,3.90172086]
[1771305583183,6.89426592,85.99,85.904,3.90172086]
[1771305583381,10.4722,85.989,85.907,11.14266371]
[1771305584086,6.89426592,85.98,85.907,11.14266371]
[1771305584285,81.1,85.979,85.907,11.14266371]
[1771305584587,10.4722,85.989,85.91,11.1424443]
[1771305584782,81.16,85.979,85.91,11.1424443]
[1771305585178,10.4722,85.989,85.914,11.1424443]
[1771305585378,6.89426592,85.97,85.899,11.10640841]
[1771305586884,6.89426592,85.97,85.831,254.11423231]
[1771305586885,6.89426592,85.95,85.881,11.10640841]
[1771305587180,73.12,85.949,85.881,11.10640841]
[1771305587583,10.4757,85.961,85.883,11.07002421]
[1771305587780,6.89426592,85.97,85.883,11.07002421]
[1771305588186,6.89426592,85.97,85.899,11.07002421]
[1771305588880,10.4746,85.969,85.899,11.07002421]
[1771305589280,73.12,85.973,85.899,11.07002421]
[1771305589577,6.89426592,85.98,85.903,11.10449095]
[1771305590888,81.32,85.982,85.906,11.10436101]
[1771305591185,81.4,85.992,85.911,11.10436101]
[1771305591384,10.4746,85.969,85.911,11.10436101]
[1771305591584,81.4,85.992,85.911,11.10436101]
[1771305591785,6.89426592,85.98,85.911,11.10436101]
[1771305592091,10.4737,85.977,85.911,11.10436101]
[1771305592689,81.54,85.979,85.912,10.4815]
[1771305592891,81.54,85.979,85.913,11.1000196]
[1771305593189,81.54,85.979,85.876,73.12]
[1771305593190,81.54,85.979,85.861,11.1000196]
[1771305593491,6.89426592,85.96,85.861,11.1000196]
[1771305593688,6.89426592,85.96,85.878,11.08429247]
[1771305594287,10.4775,85.945,85.878,11.08429247]
[1771305594884,6.89426592,85.92,85.861,11.08429247]
[1771305595090,73.12,85.919,85.81,6.89426592]
[1771305595394,34.88,85.959,85.827,11.08429247]
[1771305595594,6.89426592,85.92,85.827,11.08429247]
[1771305595995,6.89426592,85.92,85.845,11.1197444]
[1771305596191,10.81784997,85.995,85.845,11.1197444]
[1771305596395,162.8839,85.999,85.845,11.1197444]
[1771305596396,6.89426592,85.94,85.845,11.1197444]
[1771305596596,81.68,85.939,85.861,11.1197444]
[1771305597094,81.68,85.939,85.87,10.4866]
[1771305597396,81.68,85.939,85.871,11.1197444]
[1771305599690,6.89426592,85.96,85.872,10.86180632]
[1771305599890,73.12,85.959,85.872,10.86180632]
[1771305600098,73.12,85.959,85.876,10.86180632]
[1771305600494,6.89426592,85.97,85.876,10.86180632]
[1771305600691,73.12,85.969,85.892,10.86180632]
[1771305601400,6.89426592,85.97,85.892,10.86180632]
[1771305601793,6.89426592,85.97,85.893,10.4838]
[1771305602094,6.89426592,85.97,85.894,10.86232688]
[1771305602301,10.4715,85.995,85.908,10.86232688]
[1771305602490,6.89426592,85.98,85.908,10.86232688]
[1771305602890,10.4735,85.978,85.908,10.86232688]
[1771305603697,81.92,85.979,85.909,10.4819]
[1771305603901,81.92,85.979,85.91,10.89710913]
[1771305604294,81.92,85.979,85.914,21.37830913]
[1771305604499,81.92,85.979,85.914,10.89710913]
[1771305605290,81.92,85.979,85.812,21.67423231]
[1771305605291,6.89426592,85.95,85.885,10.89710913]
[1771305605999,2.76016861,85.93,85.885,10.89710913]
[1771305606192,2.76016861,85.94,85.888,10.70207581]
[1771305606404,2.76016861,85.94,85.891,10.70207581]
[1771305606700,2.76016861,85.92,85.881,10.4853]
[1771305607090,2.76016861,85.93,85.881,10.4853]
[1771305607600,2.76016861,85.93,85.886,21.21128335]
[1771305607997,73.14,85.944,85.849,73.14]
[1771305607998,73.14,85.944,85.895,10.72658335]
[1771305608302,73.14,85.954,85.895,10.72658335]